bitfinex-derivatives/quotes_ETHF0:USTF0_20250217
["timestamp","ask_amount","ask_price","bid_price","bid_amount"]
[1739787490247,2.829,2764.9,2764.6,3.93660025]
[1739787490453,3.55231,2764.9,2764.6,3.21322025]
[1739787490647,0.72335,2764.8,2764.6,3.21322025]
[1739787490952,0.72336,2764.8,2764.6,3.21322025]
[1739787491144,2.825,2764.8,2764.6,3.21322025]
[1739787491853,0.00425951,2765.1,2764.9,0.7233]
[1739787492054,0.00425951,2765.1,2765.0,3.2078]
[1739787492556,0.72751951,2765.1,2765.0,3.2078]
[1739787493147,3.54951951,2765.1,2765.0,3.2078]
[1739787493453,2.82625951,2765.1,2765.0,3.2078]
[1739787493653,3.54951951,2765.1,2765.0,3.2078]
[1739787494747,3.54951951,2765.1,2764.6,0.00542025]
[1739787494748,0.72334,2764.8,2764.7,3.2078]
[1739787495354,0.72332,2764.9,2764.6,0.00542025]
[1739787495546,0.72337,2764.7,2764.6,0.00542025]
[1739787495748,6.03405951,2765.1,2764.6,0.00542025]
[1739787495955,0.72335,2764.8,2764.6,0.00542025]
[1739787496148,0.72337,2764.7,2764.6,0.00542025]
[1739787496749,0.72344,2764.5,2764.1,3.2078]
[1739787496950,3.53446,2764.4,2764.1,3.2078]
[1739787497151,2.809,2764.3,2764.1,3.2078]
[1739787497646,3.53248,2764.3,2764.1,3.2078]
[1739787497955,0.7235,2764.2,2764.1,3.2078]
[1739787498157,2.809,2764.3,2764.1,3.2078]
[1739787498352,0.7235,2764.2,2764.1,3.2078]
[1739787498555,0.72352,2764.2,2763.9,0.00542025]
[1739787498749,2.809,2764.3,2763.9,0.00542025]
[1739787498954,2.806,2764.2,2764.0,3.2078]
[1739787499156,1.8031,2764.6,2764.0,3.2078]
[1739787499360,2.806,2764.5,2764.0,3.2078]
[1739787499555,3.21205951,2765.1,2764.4,3.2078]
[1739787499747,2.805,2765.0,2764.4,3.2078]
[1739787500158,0.7233,2765.0,2764.4,3.2078]
[1739787500355,3.21205951,2765.1,2764.4,3.2078]
[1739787500356,2.804,2764.9,2764.5,0.72341]
[1739787500554,0.00425951,2765.1,2764.7,3.2078]
[1739787500950,2.803,2765.0,2764.7,3.2078]
[1739787501352,2.8,2764.9,2764.7,3.2078]
[1739787501854,2.8,2764.9,2764.7,3.93116]
[1739787502359,2.803,2765.0,2764.8,0.72332]
[1739787502562,2.803,2765.0,2764.9,0.5721]
[1739787502962,2.803,2765.0,2764.7,3.2078]
[1739787503561,0.00425951,2765.1,2764.8,0.72333]
[1739787503761,2.81025951,2765.1,2765.0,3.2078]
[1739787504159,2.81025951,2765.1,2764.8,0.5721]
[1739787504359,2.81025951,2765.1,2765.0,3.2078]
[1739787505057,3.53351951,2765.1,2765.0,3.2078]
[1739787505558,0.00425951,2765.1,2765.0,3.2078]
[1739787505758,0.00542025,2765.2,2765.0,3.2078]
[1739787506060,2.799,2765.6,2765.4,0.72317]
[1739787506265,0.72313,2765.6,2765.5,3.2078]
[1739787506469,2.799,2765.7,2765.1,3.2078]
[1739787506772,0.02578,2766.1,2765.4,3.2078]
[1739787506977,2.83178,2766.1,2765.7,3.9309]
[1739787507170,0.72846025,2766.0,2765.7,3.2078]
[1739787507365,0.00542025,2766.0,2765.7,3.2078]
[1739787508075,0.72845025,2766.0,2765.7,3.2078]
[1739787508771,0.72308,2765.9,2765.5,0.00542025]
[1739787509068,0.00542025,2766.0,2765.5,0.00542025]
[1739787509268,2.811,2765.9,2765.8,3.2078]
[1739787509871,0.00542025,2766.0,2765.8,3.2078]
[1739787510477,0.72305,2765.9,2765.8,3.2078]
[1739787510671,0.00542025,2766.0,2765.8,3.2078]
[1739787510867,0.00542025,2766.0,2765.9,0.72305]
[1739787511072,2.818,2766.6,2766.4,0.72292]
[1739787511272,3.2078,2766.7,2766.4,0.72292]
[1739787511471,3.2078,2766.7,2766.2,3.2078]
[1739787511472,3.2078,2767.2,2766.2,3.2078]
[1739787511665,3.2078,2767.2,2766.9,3.2078]
[1739787511666,2.818,2767.2,2766.9,3.2078]
[1739787512065,2.832,2767.6,2766.9,3.2078]
[1739787512270,3.55461,2767.6,2767.3,3.2078]
[1739787512472,0.00542025,2767.5,2767.3,3.2078]
[1739787512770,0.00542025,2767.5,2767.4,8.45534734]
[1739787512965,1.08399001,2768.5,2767.7,0.72257]
[1739787513178,4.22999552,2768.8,2768.0,3.2078]
[1739787513179,2.836,2768.4,2768.0,3.2078]
[1739787513673,2.835,2768.8,2768.3,3.2078]
[1739787513880,2.834,2768.7,2768.3,3.2078]
[1739787514373,0.72237,2768.6,2768.3,3.21322025]
[1739787514585,2.836,2768.6,2768.3,3.21322025]
[1739787514775,0.00538591,2768.8,2768.3,3.21322025]
[1739787514971,0.00538591,2768.8,2768.7,3.2078]
[1739787515573,2.84438591,2768.8,2768.7,3.2078]
[1739787516378,0.00538591,2768.8,2768.7,3.93012]
[1739787516780,0.00538591,2768.8,2768.7,3.2078]
[1739787517084,3.5612,2769.2,2768.7,3.2078]
[1739787517382,0.72223,2769.1,2768.7,3.2078]
[1739787517675,0.72226,2769.0,2768.7,3.2078]
[1739787517878,0.72223,2769.1,2768.7,3.2078]
[1739787518079,2.839,2769.2,2768.7,3.2078]
[1739787518282,0.72227,2768.9,2768.7,3.2078]
[1739787518673,0.7223,2768.8,2768.3,3.21322025]
[1739787518877,3.2078,2769.5,2768.3,3.21322025]
[1739787518878,2.835,2768.7,2768.3,3.21322025]
[1739787519381,41.52236,2768.6,2768.3,3.21322025]
[1739787520485,40.8,2768.6,2768.3,3.21322025]
[1739787520977,41.52237,2768.6,2768.3,3.21322025]
[1739787521283,40.8,2768.6,2768.4,7.78102273]
[1739787521673,7.43779552,2768.5,2767.5,3.2078]
[1739787521872,0.72262,2767.6,2767.2,3.2078]
[1739787522078,2.842,2767.5,2767.2,3.2078]
[1739787522577,0.72268,2767.4,2767.2,3.2078]
[1739787522984,9.2078,2767.4,2767.0,0.00542025]
[1739787523173,0.72274,2767.1,2767.0,0.00542025]
[1739787523575,3.7561,2767.4,2767.0,0.00542025]
[1739787523785,2.854,2767.3,2767.0,0.00542025]
[1739787523977,0.72274,2767.1,2767.0,0.00542025]
[1739787524478,3.57374,2767.1,2767.0,0.00542025]
[1739787525887,2.843,2767.1,2767.0,0.00542025]
[1739787526085,3.56574,2767.1,2767.0,0.00542025]
[1739787526280,2.843,2767.1,2767.0,0.00542025]
[1739787526587,2.844,2767.1,2767.0,0.00542025]
[1739787526789,3.56674,2767.1,2767.0,0.00542025]
[1739787528881,0.72274,2767.1,2767.0,0.00542025]
[1739787529089,3.55974,2767.1,2767.0,0.00542025]
[1739787529783,4.59701578,2767.6,2767.0,0.00542025]
[1739787529985,0.72274,2767.1,2767.0,0.00542025]
[1739787530685,3.93054,2767.1,2767.0,0.00542025]
[1739787531684,6.0,2767.1,2766.1,3.2078]
[1739787531887,0.72289,2766.6,2766.1,3.2078]
[1739787532181,0.72297,2766.3,2766.1,3.2078]
[1739787532382,2.84,2766.5,2765.8,3.2078]
[1739787532579,0.72313,2765.6,2765.5,3.2078]
[1739787532778,0.72321,2765.3,2764.8,3.2078]
[1739787532975,0.00542025,2765.4,2765.3,0.00542025]
[1739787533380,2.84842025,2765.4,2765.3,0.00542025]
[1739787533576,2.84742025,2765.4,2765.3,0.00542025]
[1739787533787,3.57060025,2765.4,2765.3,0.00542025]
[1739787534790,9.20982025,2765.4,2764.5,3.2078]
[1739787534982,0.72327,2765.1,2764.5,3.2078]
[1739787535180,2.844,2765.0,2764.8,3.2078]
[1739787535382,2.843,2764.9,2764.8,3.2078]
[1739787535689,0.36782025,2765.4,2764.8,3.2078]
[1739787535889,2.844,2765.3,2765.1,3.2078]
[1739787536988,2.844,2765.3,2764.8,0.72334]
[1739787536989,0.72326,2765.2,2764.8,3.2078]
[1739787537190,2.844,2765.3,2764.8,3.2078]
[1739787537493,0.72325,2765.2,2764.8,3.2078]
[1739787537686,0.72327,2765.1,2764.8,3.2078]
[1739787537880,2.844,2765.3,2764.8,3.2078]
[1739787538091,2.844,2765.3,2765.1,3.2078]
[1739787538290,3.56722,2765.3,2765.1,3.2078]
[1739787538491,0.72324,2765.2,2765.1,3.2078]
[1739787538695,2.844,2765.3,2765.1,3.2078]
[1739787539294,0.00542025,2765.4,2765.1,3.2078]
[1739787539295,2.831,2765.2,2765.1,3.2078]
[1739787540504,3.55424,2765.2,2765.1,3.2078]
[1739787540998,2.831,2765.2,2764.8,3.2078]
[1739787541292,0.72331,2764.9,2764.8,3.2078]
[1739787541592,0.7235,2764.2,2764.1,3.2078]
[1739787541796,2.831,2764.2,2764.1,3.2078]
[1739787542398,3.2078,2765.2,2764.1,10.89278143]
[1739787542695,2.829,2765.1,2764.7,3.2078]
[1739787543693,0.72334,2764.8,2764.7,3.2078]
[1739787544285,0.72342,2764.5,2764.4,0.00542025]
[1739787544488,3.54842,2764.5,2764.4,0.00542025]
[1739787545101,2.825,2764.5,2764.4,0.00542025]
[1739787545603,3.54842,2764.5,2764.4,0.00542025]
[1739787546097,1.80864,2764.4,2763.7,3.2078]
[1739787546298,0.5619,2764.4,2763.7,3.2078]
[1739787546502,0.72359,2763.9,2763.7,3.2078]
[1739787546700,2.824,2763.8,2763.7,3.2078]
[1739787546894,2.824,2763.8,2763.3,3.2078]
[1739787547094,2.824,2763.8,2763.1,3.2078]
[1739787547296,0.72372,2763.4,2763.1,3.2078]
[1739787547501,0.3624,2763.7,2763.2,0.00542025]
[1739787547502,2.83,2763.3,2763.2,0.00542025]
[1739787547710,2.83,2763.3,2763.2,0.72918025]
[1739787547899,2.83,2763.3,2763.2,0.00542025]
[1739787548797,3.55373,2763.3,2763.2,0.00542025]
[1739787549502,8.83,2763.3,2762.8,3.2078]
[1739787549697,0.72384,2762.9,2762.8,3.2078]
[1739787550006,4.22999552,2763.2,2762.5,3.2078]
[1739787550502,7.43779552,2763.2,2762.5,3.2078]
[1739787550696,3.2078,2763.1,2762.6,0.0036135]
[1739787550902,0.72389,2762.7,2762.6,0.0036135]
[1739787551196,3.54989,2762.7,2762.6,0.0036135]
[1739787551803,2.826,2762.7,2762.6,0.0036135]
[1739787552401,3.54989,2762.7,2762.6,0.0036135]
[1739787553598,0.72405,2762.1,2762.0,3.2078]
[1739787553798,3.55005,2762.1,2762.0,3.2078]
[1739787554312,0.72412,2761.9,2761.5,3.2078]
[1739787554604,3.1884,2762.1,2761.2,1.28757]
[1739787554605,0.3624,2762.0,2761.2,3.7711]
[1739787554799,0.00543016,2762.0,2761.5,3.2078]
[1739787556405,0.7241,2761.9,2761.5,3.2078]
[1739787556603,0.00543016,2762.0,2761.5,3.2078]
[1739787556806,0.00543016,2762.0,2761.8,3.2078]
[1739787557008,0.00543016,2762.0,2761.9,0.7241]
[1739787557209,0.00543016,2762.0,2761.9,8.32865228]
[1739787557409,2.832,2762.3,2761.9,7.60455228]
[1739787557603,3.556,2762.3,2762.2,3.2078]
[1739787558515,7.43779552,2762.3,2760.9,3.2078]
[1739787558714,7.43779552,2761.9,2761.1,0.5239]
[1739787558909,2.836,2761.8,2761.1,8.20999418]
[1739787559114,2.836,2761.8,2761.2,3.2078]
[1739787559308,2.836,2761.8,2761.5,3.2078]
[1739787559309,2.835,2761.8,2761.5,3.2078]
[1739787559508,2.835,2761.8,2761.7,0.72414]
[1739787559713,2.834,2762.0,2761.6,0.5488]
[1739787560011,2.834,2762.0,2761.9,3.93189]
[1739787560208,0.00543016,2762.5,2761.9,3.2078]
[1739787560411,0.00543016,2762.5,2762.2,3.2078]
[1739787560611,0.00543016,2762.5,2762.4,0.72397]
[1739787561115,0.7237,2763.5,2762.9,0.72383]
[1739787561414,2.835,2763.4,2762.9,3.2078]
[1739787561611,0.72378,2763.2,2762.9,3.2078]
[1739787561812,2.835,2763.4,2762.9,3.2078]
[1739787562007,2.838,2763.4,2762.9,3.2078]
[1739787562207,2.84343016,2763.4,2763.0,0.72379]
[1739787562511,0.00543016,2763.4,2762.9,3.21323016]
[1739787562725,0.72916016,2763.4,2762.9,3.21323016]
[1739787562920,0.72375,2763.3,2762.9,3.21323016]
[1739787563216,0.00543016,2763.4,2762.9,3.21323016]
[1739787563414,0.00543016,2763.4,2762.9,3.93706016]
[1739787563607,0.00543016,2763.4,2762.9,3.21323016]
[1739787564005,3.2078,2763.0,2762.9,0.00543016]
[1739787564311,3.56381,2763.0,2762.9,0.00543016]
[1739787564510,6.77161,2763.0,2762.9,0.00543016]
[1739787564911,2.84,2763.0,2762.9,0.00543016]
[1739787565510,3.56381,2763.0,2762.9,0.00543016]
[1739787566205,2.84,2763.0,2762.9,0.00543016]
[1739787566609,3.56381,2763.0,2762.9,0.00543016]
[1739787567812,2.84,2763.0,2762.9,0.00543016]
[1739787568421,3.56381,2763.0,2762.9,0.00543016]
[1739787568621,6.77161,2763.0,2762.9,0.00543016]
[1739787569012,12.77161,2763.0,2762.9,0.00543016]
[1739787569217,12.77161,2763.0,2761.8,0.5769]
[1739787569218,15.8330027,2763.0,2761.8,3.2078]
[1739787569413,7.43779552,2762.4,2761.8,3.2078]
[1739787569715,43.634,2762.3,2761.7,0.5692]
[1739787569920,0.72413,2761.8,2761.7,0.5692]
[1739787570235,3.55813,2761.8,2761.7,0.5692]
[1739787571125,40.8,2762.3,2761.7,3.777]
[1739787571324,2.828,2762.1,2761.7,0.5692]
[1739787571722,0.72413,2761.8,2761.7,0.5692]
[1739787571924,2.828,2762.1,2761.7,0.5692]
[1739787572125,7.43779552,2762.5,2761.7,0.5692]
[1739787572425,0.724,2762.3,2761.9,3.2078]
[1739787573019,2.83,2762.4,2762.0,7.39148267]
[1739787573213,2.83,2762.4,2762.0,7.91878267]
[1739787573423,3.55398,2762.4,2762.0,7.91878267]
[1739787573915,0.72402,2762.2,2762.0,7.91878267]
[1739787574121,0.72407,2762.1,2761.7,0.5692]
[1739787574322,2.83,2762.4,2761.7,0.5692]
[1739787574630,0.3624,2762.3,2761.7,0.5692]
[1739787574829,0.72413,2761.8,2761.7,0.5692]
[1739787575025,2.829,2761.9,2761.7,0.5692]
[1739787575427,2.83,2762.1,2761.7,0.5692]
[1739787575628,2.83,2762.1,2761.9,3.2078]
[1739787576126,6.0388,2762.5,2761.9,3.2078]
[1739787576326,20.4274,2762.7,2762.3,0.724]
[1739787576327,20.7889,2762.7,2762.3,0.724]
[1739787576534,20.7889,2762.7,2762.5,3.2078]
[1739787576535,2.831,2762.7,2762.5,3.2078]
[1739787576830,4.59239552,2763.3,2762.6,0.5363]
[1739787577029,2.832,2763.2,2762.6,0.5363]
[1739787577227,0.72385,2762.9,2762.6,0.5363]
[1739787577426,2.832,2763.2,2762.6,0.5363]
[1739787577825,0.72389,2762.7,2762.6,0.5363]
[1739787578140,2.832,2763.2,2762.5,3.2078]
[1739787578430,2.832,2763.2,2761.9,3.2078]
[1739787578431,4.22999552,2762.9,2761.9,3.2078]
[1739787578727,3.87559833,2762.7,2762.2,3.2078]
[1739787579034,2.833,2762.6,2762.2,3.93181]
[1739787579233,2.833,2762.6,2762.2,3.2078]
[1739787579727,2.833,2762.6,2762.3,1.26029]
[1739787579934,0.72397,2762.4,2762.3,0.5363]
[1739787580225,0.72397,2762.4,2761.9,1.27859]
[1739787580226,3.2078,2762.5,2761.9,3.7623]
[1739787580433,0.72407,2762.0,2761.9,3.7623]
[1739787581326,0.72407,2762.0,2761.9,3.2078]
[1739787581526,2.832,2762.1,2761.7,0.5632]
[1739787581727,0.72413,2761.8,2761.7,0.5632]
[1739787581933,0.72411,2761.9,2761.7,0.5632]
[1739787582330,0.72411,2761.9,2761.5,3.932]
[1739787582524,0.72409,2762.0,2761.5,3.2078]
[1739787582831,0.72952016,2762.0,2761.6,0.72417]
[1739787583036,0.00543016,2762.0,2761.5,3.2078]
[1739787583530,0.72413,2761.8,2761.5,3.2078]
[1739787583730,0.00543016,2762.0,2761.5,3.2078]
[1739787583939,0.72412,2761.9,2761.5,3.93199]
[1739787584326,0.72412,2761.9,2761.5,3.2078]
[1739787584726,0.00543016,2762.0,2761.5,3.2078]
[1739787584927,0.72413,2761.8,2761.5,3.93199]
[1739787585324,0.72413,2761.8,2761.5,3.2078]
[1739787586028,0.72413,2761.8,2761.5,3.932]
[1739787586232,0.72413,2761.8,2761.5,3.2078]
[1739787586430,0.00543016,2762.0,2761.7,0.72414]
[1739787586631,2.81,2761.9,2761.8,3.2078]
[1739787587329,2.81,2761.9,2761.8,3.93193]
[1739787587523,2.81,2761.9,2761.8,3.2078]
[1739787587733,2.81,2761.9,2761.8,3.93193]
[1739787588435,2.81,2761.9,2761.8,3.2078]
[1739787589032,2.81,2761.9,2761.8,3.93193]
[1739787589231,2.80443016,2762.0,2761.9,0.7241]
[1739787590231,2.80443016,2762.0,2761.8,3.2078]
[1739787590438,2.80443016,2762.0,2761.8,3.9319]
[1739787590640,2.80443016,2762.0,2761.9,0.7241]
[1739787590831,2.80443016,2762.0,2761.8,3.9319]
[1739787591438,2.80443016,2762.0,2761.9,0.7241]
[1739787592226,0.00543016,2762.0,2761.9,0.7241]
[1739787592433,0.00543016,2762.0,2761.9,1.2569]
[1739787592631,0.00543016,2762.0,2761.9,8.64858066]
[1739787592836,2.788,2762.6,2762.5,0.72393]
[1739787593232,44.67559833,2763.0,2762.4,3.2078]
[1739787593438,2.786,2762.9,2762.7,3.93166]
[1739787593639,2.786,2762.9,2762.8,0.72386]
[1739787593940,2.785,2763.0,2762.8,0.72386]
[1739787594344,2.785,2763.0,2762.7,3.2078]
[1739787594641,0.72384,2762.9,2762.7,3.2078]
[1739787595336,2.785,2763.0,2762.7,3.2078]
[1739787595538,2.785,2763.0,2762.8,0.72385]
[1739787595934,0.72381,2763.0,2762.7,3.2078]
[1739787596137,0.72383,2763.0,2762.6,0.72933016]
[1739787596341,0.72389,2762.7,2762.6,0.00543016]
[1739787596737,3.87559833,2763.0,2762.6,0.00543016]
[1739787597039,3.87559833,2763.0,2762.6,0.72934016]
[1739787597040,41.52385,2762.9,2762.6,0.72934016]
[1739787597346,2.787,2762.9,2762.7,0.72387]
[1739787597638,2.787,2762.9,2762.6,0.00543016]
[1739787597838,0.72388,2762.8,2762.6,0.00543016]
[1739787598039,2.787,2762.9,2762.6,0.00543016]
[1739787598238,0.72389,2762.7,2762.6,0.00543016]
[1739787599936,7.39048833,2762.7,2762.6,0.00543016]
[1739787600443,10.59828833,2762.7,2762.6,0.00543016]
[1739787602232,15.87439833,2762.7,2761.7,3.2078]
[1739787602437,3.87559833,2762.1,2761.4,3.2078]
[1739787602633,3.87559833,2762.1,2761.6,0.72416]
[1739787602939,2.788,2762.2,2762.1,0.72405]
[1739787603136,2.789,2762.3,2762.0,3.2078]
[1739787603338,2.789,2762.3,2762.2,0.72402]
[1739787603734,2.789,2762.3,2762.0,3.2078]
[1739787604140,2.789,2762.3,2761.7,3.2078]
[1739787604432,2.79,2762.3,2762.0,0.72406]
[1739787604636,2.79,2762.3,2761.7,10.81416464]
[1739787604839,0.72405,2762.1,2761.7,11.53830464]
[1739787605035,3.51401,2762.3,2761.8,0.72412]
[1739787605240,2.79,2762.3,2761.7,10.81416464]
[1739787605444,2.79,2762.3,2762.0,0.72406]
[1739787606142,2.79,2762.3,2762.0,3.2078]
[1739787606345,0.72404,2762.2,2762.0,3.2078]
[1739787606644,2.79,2762.3,2762.0,3.2078]
[1739787606849,0.72413,2761.8,2761.7,3.2078]
[1739787607042,3.51413,2761.8,2761.7,3.2078]
[1739787607444,2.79,2761.8,2761.7,3.2078]
[1739787608244,3.87559833,2762.3,2761.7,3.2078]
[1739787608440,0.72406,2762.1,2761.8,0.72412]
[1739787608635,2.787,2762.2,2761.7,3.2078]
[1739787609349,0.72401,2762.3,2762.0,3.93186]
[1739787609645,2.783,2762.2,2762.1,0.72405]
[1739787609845,2.782,2762.3,2762.1,0.72405]
[1739787610048,3.506,2762.3,2762.0,3.93185]
[1739787610350,2.782,2762.3,2762.1,0.72405]
[1739787610543,3.50601,2762.3,2762.0,3.93185]
[1739787610748,3.50601,2762.3,2762.1,0.72405]
[1739787611047,2.782,2762.3,2762.2,0.72402]
[1739787611249,2.782,2762.3,2762.1,0.72404]
[1739787611443,2.782,2762.3,2762.0,3.2078]
[1739787611646,2.782,2762.3,2762.1,0.72403]
[1739787612141,2.782,2762.3,2762.1,0.72402]
[1739787612341,2.782,2762.3,2762.2,0.72402]
[1739787612753,0.72398,2762.4,2762.2,0.72402]
[1739787612947,3.49195,2762.5,2762.3,3.2078]
[1739787613137,2.768,2762.5,2762.3,3.2078]
[1739787613536,0.72397,2762.4,2762.3,3.2078]
[1739787613743,0.72396,2762.5,2762.3,3.2078]
[1739787613941,3.48796,2762.5,2762.3,3.2078]
[1739787614150,2.763,2762.7,2762.4,0.72397]
[1739787614346,2.763,2762.7,2762.3,3.2078]
[1739787614743,0.72384,2762.9,2762.4,7.57605356]
[1739787615052,6.63859833,2762.9,2762.3,3.2078]
[1739787615253,0.72394,2762.6,2762.3,3.2078]
[1739787615549,0.72395,2762.5,2762.3,3.2078]
[1739787615752,0.72395,2762.5,2762.3,3.93179]
[1739787616141,0.72395,2762.5,2762.3,3.2078]
[1739787616550,0.72394,2762.6,2762.4,0.72397]
[1739787616741,2.762,2762.8,2762.3,3.2078]
[1739787617144,2.762,2762.8,2762.6,0.7239]
[1739787617648,2.762,2762.8,2762.3,3.2078]
[1739787618045,2.762,2762.8,2762.7,0.72389]
[1739787618242,2.762,2762.8,2762.3,3.7517]
[1739787618544,3.48284,2762.9,2762.7,0.72389]
[1739787618749,3.48285,2762.9,2762.7,0.72389]
[1739787619048,2.759,2762.9,2762.8,0.72386]
[1739787620341,0.00543016,2763.1,2762.6,3.2078]
[1739787620548,0.00543016,2763.1,2763.0,0.72381]
[1739787621244,2.752,2763.8,2763.1,0.72379]
[1739787621441,3.47561,2763.8,2763.5,3.93147]
[1739787621641,2.752,2763.8,2763.5,3.93147]
[1739787621842,3.87559833,2764.1,2763.5,3.2078]
[1739787622044,2.752,2764.0,2763.5,3.2078]
[1739787622249,2.752,2764.0,2763.7,0.7236]
[1739787622449,2.75743016,2764.0,2763.7,0.7236]
[1739787622848,0.00543016,2764.0,2763.9,0.72358]
[1739787623052,0.00543016,2764.0,2763.6,0.5443]
[1739787623250,0.00543016,2764.0,2763.7,0.72361]
[1739787623448,0.00543016,2764.0,2763.9,3.2078]
[1739787624448,0.00543016,2764.0,2763.9,3.93138]
[1739787624649,0.00543016,2764.0,2763.9,3.2078]
[1739787625156,0.72898016,2764.0,2763.9,3.2078]
[1739787625354,0.72359,2763.9,2763.7,0.5461]
[1739787625649,0.00543016,2764.0,2763.8,7.61136035]
[1739787625855,0.72899016,2764.0,2763.8,7.61136035]
[1739787626054,0.00543016,2764.0,2763.8,7.61136035]
[1739787626459,0.72358,2763.9,2763.8,7.61136035]
[1739787626856,0.00543016,2764.0,2763.8,7.61136035]
[1739787627253,0.72358,2763.9,2763.8,7.61136035]
[1739787627455,0.72358,2763.9,2763.6,0.72365]
[1739787627456,0.72359,2763.9,2763.6,0.72365]
[1739787627755,41.52358,2763.9,2763.5,0.72910016]
[1739787627961,43.534,2763.9,2763.6,0.72365]
[1739787628258,2.734,2763.9,2763.6,3.2078]
[1739787628459,2.734,2763.9,2763.6,3.93144]
[1739787629055,2.734,2763.9,2763.8,0.7236]
[1739787629257,0.00543016,2764.0,2763.7,7.58873229]
[1739787629558,0.00543016,2764.0,2763.9,0.72358]
[1739787629759,3.5702,2765.4,2763.9,5.9438]
[1739787629958,3.87559833,2765.6,2764.8,3.2078]
[1739787630160,0.5663,2765.9,2765.4,0.72317]
[1739787630356,20.061,2766.1,2765.5,0.72315]
[1739787630562,2.743,2766.6,2765.7,3.2078]
[1739787630760,2.743,2766.6,2766.0,3.93081]
[1739787630956,0.00543016,2766.4,2766.0,3.2078]
[1739787631164,0.00543016,2766.4,2766.1,0.72298]
[1739787631364,0.00543016,2766.4,2766.1,0.723]
[1739787631560,0.00543016,2766.4,2766.1,6.0]
[1739787631767,0.72273,2767.2,2766.4,0.7229]
[1739787631964,6.61459833,2767.3,2766.6,3.2078]
[1739787632162,6.61459833,2767.3,2765.4,1.204]
[1739787632163,7.08339833,2767.0,2766.3,3.2078]
[1739787632363,3.87559833,2766.7,2766.3,3.2078]
[1739787632869,2.741,2766.8,2765.9,0.00543016]
[1739787632870,0.72302,2766.1,2765.9,0.00543016]
[1739787633059,0.72303,2766.0,2765.9,0.00543016]
[1739787633257,3.46603,2766.0,2765.9,0.00543016]
[1739787633866,3.46603,2766.0,2765.4,3.2078]
[1739787633867,3.2842,2766.0,2764.9,0.5463]
[1739787634170,3.87559833,2765.7,2765.1,3.2078]
[1739787634671,3.87559833,2765.7,2765.2,7.57365765]
[1739787635863,2.733,2765.6,2765.2,7.57365765]
[1739787636362,3.2078,2765.8,2765.2,7.57365765]
[1739787636562,5.9388,2765.8,2765.2,7.57365765]
[1739787636764,5.9388,2765.8,2765.4,0.72318]
[1739787637162,2.731,2765.8,2765.5,7.58107904]
[1739787637358,3.2078,2766.1,2765.5,7.58107904]
[1739787637359,2.731,2766.0,2765.5,7.58107904]
[1739787637778,2.731,2766.0,2765.5,8.30423904]
[1739787637963,0.72305,2765.9,2765.5,7.58107904]
[1739787638167,2.731,2766.0,2765.5,7.58107904]
[1739787638372,2.726,2766.0,2765.5,7.58107904]
[1739787638571,2.726,2766.0,2765.5,8.10687904]
[1739787638769,2.726,2766.0,2765.5,8.83002904]
[1739787639272,2.726,2766.0,2765.5,8.10687904]
[1739787639467,3.44904,2766.0,2765.5,8.83002904]
[1739787639666,2.726,2766.0,2765.5,8.10687904]
[1739787639861,2.726,2766.0,2765.6,0.72312]
[1739787640063,3.44903,2766.0,2765.5,8.10687904]
[1739787640373,3.44903,2766.0,2765.7,7.42757855]
[1739787640678,3.44903,2766.0,2765.6,8.15070855]
[1739787640972,0.72303,2766.0,2765.7,0.7231]
[1739787641171,44.67559833,2766.3,2765.6,7.59588193]
[1739787641372,0.72299,2766.2,2765.8,3.93087]
[1739787641567,2.713,2766.3,2765.8,3.2078]
[1739787641769,3.2078,2766.4,2765.9,8.31893193]
[1739787642072,2.712,2766.3,2765.9,8.31893193]
[1739787642667,0.00543016,2766.8,2766.1,3.2078]
[1739787642867,0.00543016,2766.8,2766.5,0.72288]
[1739787643071,0.00543016,2766.8,2766.6,0.72287]
[1739787643371,0.00543016,2766.8,2766.7,0.72284]
[1739787643675,0.00543016,2766.8,2766.6,0.72287]
[1739787643873,0.00543016,2766.8,2766.5,8.33276546]
[1739787644170,0.00543016,2766.8,2766.6,0.72286]
[1739787644473,0.00543016,2766.8,2766.7,0.72284]
[1739787644666,0.00543016,2766.8,2766.7,7.52154725]
[1739787644866,0.00543016,2766.8,2766.6,7.52154725]
[1739787644867,0.72284,2766.7,2766.6,7.52154725]
[1739787645075,2.712,2766.7,2766.5,7.52154725]
[1739787645373,2.712,2766.7,2766.3,7.65115309]
[1739787645374,0.72292,2766.4,2766.3,7.65115309]
[1739787645674,0.72299,2766.2,2765.7,1.30169]
[1739787645876,2.711,2766.2,2765.7,0.5786]
[1739787646074,3.43399,2766.2,2765.9,7.77825857]
[1739787646276,3.43399,2766.2,2765.8,7.77825857]
[1739787646277,2.711,2766.2,2765.8,7.77825857]
[1739787646571,7.08339833,2765.9,2765.1,0.00543016]
[1739787646773,4.59881833,2765.3,2765.1,0.00543016]
[1739787646974,2.725,2765.2,2765.1,0.00543016]
[1739787647280,0.72338,2764.7,2764.2,3.2078]
[1739787647467,6.6572,2764.6,2764.2,3.2078]
[1739787647667,6.6572,2764.6,2763.8,0.5786]
[1739787647668,3.2078,2764.3,2763.8,0.5786]
[1739787647977,2.726,2764.6,2763.9,8.33652582]
[1739787648169,3.2078,2764.4,2763.9,7.61295582]
[1739787648475,0.00543016,2764.4,2764.0,0.72354]
[1739787649180,0.00543016,2764.4,2763.9,10.82618598]
[1739787649473,3.2078,2764.1,2763.9,0.00543016]
[1739787649666,3.45155,2764.0,2763.9,0.00543016]
[1739787649867,2.728,2764.0,2763.9,0.00543016]